bitfinex-derivatives/quotes_ETHF0:USTF0_20240922
["timestamp","ask_amount","ask_price","bid_price","bid_amount"]
[1727024875002,0.38819,2575.9,2575.8,3.2078]
[1727024875206,5.02508528,2575.9,2575.8,3.2078]
[1727024875407,0.38822,2575.7,2575.5,1.39477763]
[1727024875705,4.05461528,2575.6,2575.5,1.39477763]
[1727024875901,4.05461528,2575.6,2575.5,1.00653763]
[1727024875902,4.49612395,2575.6,2575.5,1.00653763]
[1727024876301,0.38825,2575.5,2575.4,4.21433763]
[1727024876602,0.38825,2575.5,2575.4,3.2078]
[1727024876603,3.68566528,2575.5,2575.4,3.2078]
[1727024876800,3.68566528,2575.5,2575.4,4.21433763]
[1727024877001,3.73894395,2575.5,2575.4,4.21433763]
[1727024877212,3.73894395,2575.5,2575.4,1.00653763]
[1727024877404,3.73894395,2575.5,2575.3,1.00653763]
[1727024877703,3.29741528,2575.3,2575.2,1.39516403]
[1727024877910,3.29741528,2575.3,2575.2,2.81275939]
[1727024878111,3.35069395,2575.3,2575.2,1.41756962]
[1727024878305,3.35069395,2575.3,2575.2,1.39516829]
[1727024878705,3.73897395,2575.3,2575.2,1.00687829]
[1727024878914,3.35069395,2575.3,2575.2,1.00687829]
[1727024879111,3.35069395,2575.3,2575.2,1.39516829]
[1727024879299,3.35069395,2575.3,2575.1,6.72297829]
[1727024879504,3.29741528,2575.2,2575.1,6.72298829]
[1727024879809,3.29741528,2575.2,2575.1,8.14008629]
[1727024880008,3.35069395,2575.2,2575.1,8.14008629]
[1727024880215,3.35069395,2575.2,2575.1,8.14009582]
[1727024880404,3.35069395,2575.2,2575.1,6.72298829]
[1727024881008,3.35069395,2575.2,2575.1,8.14009054]
[1727024881201,3.35069395,2575.2,2575.1,6.72298829]
[1727024881403,3.75139395,2575.2,2575.1,6.72298829]
[1727024881711,3.75139395,2575.2,2575.1,6.33467829]
[1727024881900,4.13968395,2575.2,2575.1,6.33467829]
[1727024882102,4.13968395,2575.2,2575.1,5.3278]
[1727024882505,3.75139395,2575.2,2575.1,5.3278]
[1727024882899,3.75139395,2575.2,2575.1,5.71611]
[1727024884818,3.75139395,2575.2,2575.1,5.3278]
[1727024885403,4.13968395,2575.2,2575.1,5.3278]
[1727024885629,4.13968395,2575.2,2575.1,3.2078]
[1727024886613,3.75139395,2575.2,2575.1,3.2078]
[1727024887010,4.13968395,2575.2,2575.1,3.2078]
[1727024887212,4.13968395,2575.2,2574.9,2.50834]
[1727024887213,0.38831,2575.1,2574.9,2.50834]
[1727024887415,0.3911,2575.0,2574.9,2.50834]
[1727024888113,0.44437867,2575.0,2574.9,2.50834]
[1727024888512,0.05327867,2575.0,2574.9,2.50834]
[1727024896529,0.05327867,2575.0,2574.9,12.39154]
[1727024896723,0.3749,2575.5,2575.3,0.38827]
[1727024896923,0.3749,2575.5,2575.4,0.3759]
[1727024897430,3.67231528,2575.5,2575.4,0.3759]
[1727024897821,4.06056528,2575.5,2575.4,0.3759]
[1727024899326,0.38826,2575.4,2575.3,3.2078]
[1727024899526,0.38826,2575.4,2575.0,1.77589829]
[1727024899527,3.29741528,2575.4,2575.0,3.9725]
[1727024899722,3.29741528,2575.1,2575.0,3.5918]
[1727024900230,4.44881528,2575.1,2575.0,3.5918]
[1727024900922,1.1514,2575.1,2575.0,3.98013]
[1727024901122,4.44881528,2575.1,2575.0,3.98013]
[1727024902630,3.29741528,2575.1,2575.0,3.98013]
[1727024904329,3.29741528,2575.1,2575.0,3.5918]
[1727024904534,3.29741528,2575.1,2575.0,3.98013]
[1727024905438,3.68573528,2575.1,2574.8,0.76765]
[1727024905644,4.44531528,2575.0,2574.8,0.76765]
[1727024906934,4.44531528,2575.0,2574.7,6.46566]
[1727024906935,3.29741528,2574.9,2574.7,6.46566]
[1727024907827,3.29741528,2574.8,2574.7,6.46566]
[1727024908227,3.29741528,2574.8,2574.7,6.08616]
[1727024908639,3.29741528,2574.8,2574.7,5.6978]
[1727024908829,3.29741528,2574.8,2574.7,6.08617]
[1727024910438,0.38822,2575.7,2575.3,0.38827]
[1727024910645,1.1377,2575.7,2575.5,2.12]
[1727024910830,1.1377,2575.7,2575.6,3.59603]
[1727024910831,3.29741528,2575.7,2575.6,3.59603]
[1727024911531,3.29741528,2575.7,2575.6,4.60152374]
[1727024911731,3.29741528,2575.7,2575.6,3.59603]
[1727024913135,2.71477809,2575.7,2575.6,3.59603]
[1727024915335,0.7536,2576.1,2576.0,0.38817]
[1727024915544,0.7536,2576.1,2576.0,3.2078]
[1727024915744,3.46837809,2576.1,2576.0,3.2078]
[1727024916239,2.71477809,2576.1,2576.0,3.59597]
[1727024916543,1.1331,2576.6,2576.2,0.38814]
[1727024916736,1.52119,2576.6,2576.2,0.38814]
[1727024917041,2.71477809,2576.3,2576.2,0.38814]
[1727024921944,2.71477809,2576.3,2576.0,0.3945]
[1727024922139,2.71477809,2576.1,2576.0,3.59597]
[1727024922543,3.10737809,2576.1,2576.0,3.59597]
[1727024923444,3.10737809,2576.1,2576.0,3.2078]
[1727024924149,3.10737809,2576.1,2576.0,3.59597]
[1727024924540,3.10737809,2576.1,2576.0,5.71597]
[1727024924743,2.71477809,2576.1,2576.0,5.71597]
[1727024930952,0.3767,2576.2,2576.1,0.38816]
[1727024931454,3.09147809,2576.2,2576.1,0.38816]
[1727024933747,3.47962809,2576.2,2576.0,5.71596]
[1727024933949,3.10587809,2576.1,2576.0,5.71596]
[1727024934462,3.49403809,2576.1,2576.0,5.3278]
[1727024935157,3.10587809,2576.1,2576.0,5.71597]
[1727024937158,3.49403809,2576.1,2576.0,5.3278]
[1727024937357,3.49403809,2576.1,2576.0,3.2078]
[1727024938164,4.46444809,2576.1,2576.0,3.2078]
[1727024938760,3.49403809,2576.1,2576.0,3.2078]
[1727024938966,3.49403809,2576.1,2576.0,3.59597]
[1727024939150,3.10587809,2576.1,2576.0,3.59597]
[1727024939357,3.49403809,2576.1,2576.0,3.2078]
[1727024940157,3.10587809,2576.1,2576.0,3.59597]
[1727024940664,3.49403809,2576.1,2576.0,3.2078]
[1727024941261,3.49403809,2576.1,2576.0,3.59597]
[1727024941563,3.10587809,2576.1,2576.0,3.2078]
[1727024942151,3.10587809,2576.1,2576.0,3.59597]
[1727024942362,3.10587809,2576.1,2576.0,5.71597]
[1727024942363,2.71477809,2576.1,2576.0,5.71597]
[1727024942562,2.71477809,2576.1,2576.0,6.49167]
[1727024944757,0.3974,2576.5,2576.4,0.38811]
[1727024944962,0.3974,2576.5,2576.4,3.59591]
[1727024945171,3.11217809,2576.5,2576.4,3.59591]
[1727024945369,3.11217809,2576.5,2576.4,4.37221]
[1727024945683,2.71477809,2576.5,2576.4,4.37221]
[1727024945857,2.584,2577.2,2576.7,0.38807]
[1727024946058,0.38803,2577.0,2576.8,2.12]
[1727024946264,1.55072,2577.1,2576.8,2.50805]
[1727024946573,2.71477809,2576.9,2576.8,2.50805]
[1727024946764,2.71477809,2576.9,2576.8,2.12]
[1727024947768,2.71477809,2576.9,2576.7,0.38807]
[1727024947966,2.71477809,2576.8,2576.7,0.38807]
[1727024948359,2.71477809,2576.8,2576.7,3.59587]
[1727024948560,2.71477809,2576.8,2576.7,0.38807]
[1727024948757,2.71477809,2576.8,2576.7,3.59587]
[1727024948967,2.71477809,2576.8,2576.7,3.2078]
[1727024949360,2.71477809,2576.8,2576.7,3.59587]
[1727024949768,2.71477809,2576.8,2576.7,3.2078]
[1727024950262,2.71477809,2576.8,2576.7,3.59587]
[1727024950574,2.71477809,2576.8,2576.4,6.1041]
[1727024950772,1.1627,2577.1,2576.4,6.1041]
[1727024950773,2.71477809,2576.5,2576.4,6.1041]
[1727024951072,2.71477809,2576.5,2576.4,6.49221]
[1727024951867,2.71477809,2576.5,2576.4,0.3707]
[1727024952463,3.10287809,2576.5,2576.4,0.3707]
[1727024952667,2.71477809,2576.5,2576.4,0.75881]
[1727024952974,2.71477809,2576.5,2576.4,6.08661]
[1727024955670,2.71477809,2576.5,2576.4,5.6985]
[1727024956368,2.71477809,2576.5,2576.4,6.08661]
[1727024956966,3.10287809,2576.5,2576.4,5.6985]
[1727024957162,2.71477809,2576.5,2576.4,5.6985]
[1727024957573,3.10917809,2576.5,2576.4,5.6985]
[1727024957773,3.10917809,2576.5,2576.4,6.08661]
[1727024957966,3.49727809,2576.5,2576.4,0.3707]
[1727024959481,3.49727809,2576.5,2576.4,3.5785]
[1727024959968,3.49727809,2576.5,2576.4,6.08661]
[1727024959969,2.71477809,2576.5,2576.4,6.08661]
[1727024964178,2.71477809,2576.5,2576.4,7.09210374]
[1727024964379,2.71477809,2576.5,2576.4,8.99979914]
[1727024968380,2.71477809,2576.5,2576.4,7.85979914]
[1727024968683,0.7771,2577.0,2576.9,0.38804]
[1727024968982,0.7771,2577.0,2576.9,1.36804]
[1727024969282,3.49187809,2577.0,2576.9,1.36804]
[1727024969676,3.87989809,2577.0,2576.9,0.98]
[1727024973185,3.87989809,2577.0,2576.9,1.36804]
[1727024974276,3.49187809,2577.0,2576.9,1.36804]
[1727024974687,3.87989809,2577.0,2576.9,1.36804]
[1727024976086,3.87989809,2577.0,2576.9,0.98]
[1727024976673,3.87989809,2577.0,2576.9,1.36804]
[1727024977180,3.50779809,2577.0,2576.9,1.36804]
[1727024977485,3.50779809,2577.0,2576.9,0.98]
[1727024978777,3.50779809,2577.0,2576.9,1.36804]
[1727024979184,2.71477809,2577.0,2576.9,1.36804]
[1727024986984,3.08807809,2577.0,2576.8,0.383]
[1727024987190,3.49497809,2576.9,2576.8,1.36804]
[1727024989789,2.71477809,2576.9,2576.8,1.36804]
[1727024990988,0.3733,2577.0,2576.9,0.38804]
[1727024991189,0.76132,2577.0,2576.9,0.38804]
[1727024991393,12.18331182,2580.8,2576.9,6.38804]
[1727024991394,0.9698,2577.7,2576.9,6.38804]
[1727024991600,1.18646,2577.5,2577.4,1.36796]
[1727024991902,1.18645,2577.5,2577.4,0.98]
[1727024992094,1.18645,2577.5,2577.4,1.36796]
[1727024992095,3.90122809,2577.5,2577.4,1.36796]
[1727024992288,3.90122809,2577.5,2577.4,0.98]
[1727024992494,3.51327809,2577.5,2577.4,1.36796]
[1727024996296,2.71477809,2577.5,2577.4,1.36796]
[1727024996491,3.11117809,2577.5,2577.4,1.36796]
[1727024997301,3.11117809,2577.5,2577.4,1.74006]
[1727025001502,2.71477809,2577.5,2577.4,1.74006]
[1727025001699,0.78459,2577.9,2577.4,1.3521]
[1727025002002,0.78459,2577.9,2577.8,1.3679]
[1727025002003,0.3967,2577.9,2577.8,1.3679]
[1727025002407,3.11147809,2577.9,2577.8,1.3679]
[1727025005103,3.11147809,2577.9,2577.8,0.98]
[1727025005405,3.11147809,2577.9,2577.8,1.3679]
[1727025005406,3.49936809,2577.9,2577.8,1.3679]
[1727025005601,3.11147809,2577.9,2577.8,1.3679]
[1727025006505,2.71477809,2577.9,2577.8,1.3679]
[1727025007208,2.71477809,2577.9,2577.8,2.33767]
[1727025007404,0.77764,2578.3,2578.1,0.38785]
[1727025007598,0.77764,2578.3,2578.2,0.98]
[1727025007903,3.49241809,2578.3,2578.2,0.98]
[1727025009105,0.38787,2578.1,2577.9,1.36788]
[1727025009308,3.47957809,2578.0,2577.9,1.36788]
[1727025010401,3.86744809,2578.0,2577.9,1.36788]
[1727025010600,0.38789,2577.9,2577.8,3.2078]
[1727025010802,3.50396809,2577.9,2577.8,3.2078]
[1727025011811,0.3879,2577.8,2577.7,0.98]
[1727025012110,3.10267809,2577.8,2577.7,0.98]
[1727025012300,0.38792,2577.7,2577.6,2.50793]
[1727025012500,3.10269809,2577.7,2577.6,2.12]
[1727025013608,2.71477809,2577.7,2577.4,5.3278]
[1727025013814,3.10272809,2577.5,2577.4,5.3278]
[1727025014302,3.47682809,2577.5,2577.4,5.3278]
[1727025018907,3.47682809,2577.5,2577.4,2.12]
[1727025020314,2.71477809,2577.5,2577.4,2.50796]
[1727025020519,2.13254485,2577.5,2577.4,2.89586]
[1727025021018,0.38791,2577.8,2577.6,0.38793]
[1727025021208,0.38791,2577.8,2577.7,2.12]
[1727025021410,2.52045485,2577.8,2577.7,2.5141]
[1727025022113,2.52045485,2577.8,2577.7,2.12]
[1727025022511,0.38792,2577.7,2577.6,3.2078]
[1727025022814,0.38793,2577.6,2577.5,2.5141]
[1727025023018,3.27507485,2577.6,2577.5,2.5141]
[1727025028434,3.27507485,2577.6,2577.5,2.90205]
[1727025028730,3.27507485,2577.6,2577.5,2.5141]
[1727025031636,3.27507485,2577.6,2577.5,0.3941]
[1727025032438,3.27507485,2577.6,2577.5,1.3741]
[1727025035030,3.27507485,2577.6,2577.5,0.98]
[1727025035234,0.38796,2577.4,2577.3,0.3674]
[1727025035432,2.52050485,2577.4,2577.3,0.3674]
[1727025035843,0.38798,2577.3,2577.2,0.98]
[1727025036031,2.52052485,2577.3,2577.2,0.98]
[1727025037336,2.52052485,2577.3,2577.2,1.36799]
[1727025037539,2.52052485,2577.3,2577.2,0.98]
[1727025037835,0.38799,2577.2,2577.1,0.7535]
[1727025038032,2.52053485,2577.2,2577.1,0.7535]
[1727025038840,2.13254485,2577.2,2577.1,2.12151]
[1727025039039,1.14255,2577.6,2577.4,0.38796]
[1727025039341,0.38795,2577.6,2577.5,1.7824]
[1727025039635,2.52049485,2577.6,2577.5,2.1574]
[1727025040830,2.52049485,2577.6,2577.5,1.7524]
[1727025041032,2.52049485,2577.6,2577.5,1.355]
[1727025042137,2.52049485,2577.6,2577.5,0.98]
[1727025050238,3.2078,2578.2,2577.5,0.98]
[1727025050438,2.13254485,2577.8,2577.7,3.59572]
[1727025050737,2.13254485,2577.8,2577.7,4.00122]
[1727025050949,0.38788,2578.0,2577.8,0.38789]
[1727025051154,0.3827,2578.1,2577.9,0.4027]
[1727025051334,0.7748,2578.2,2578.0,3.2078]
[1727025051335,0.3938,2578.2,2578.0,3.2078]
[1727025051538,2.13254485,2578.1,2578.0,4.00026]
[1727025052344,2.13254485,2578.1,2578.0,6.12026]
[1727025053747,0.00391757,2578.5,2578.4,0.38781]
[1727025053941,0.00391757,2578.5,2578.4,2.50781]
[1727025053942,2.13646242,2578.5,2578.4,2.50781]
[1727025054150,2.52426242,2578.5,2578.4,0.3692]
[1727025054350,2.13646242,2578.5,2578.4,1.15681]
[1727025067052,2.13646242,2578.5,2578.4,0.769]
[1727025067348,2.13646242,2578.5,2578.3,5.3278]
[1727025067349,0.38781,2578.4,2578.1,2.12]
[1727025067558,2.13254485,2578.2,2578.1,0.38785]
[1727025067743,2.13254485,2578.2,2578.1,2.50785]
[1727025068252,2.13254485,2578.2,2578.0,3.9537]
[1727025068253,2.13254485,2578.2,2578.0,4.34157]
[1727025068452,0.38784,2578.3,2578.1,2.12]
[1727025068753,2.52038485,2578.2,2578.1,2.12]
[1727025069451,2.13254485,2578.2,2578.1,2.50786]
[1727025070948,2.52038485,2578.2,2578.1,2.12]
[1727025071256,2.13254485,2578.2,2578.0,6.0737]
[1727025071440,2.53564485,2578.1,2578.0,3.9537]
[1727025071643,2.92350485,2578.1,2578.0,3.9537]
[1727025071849,2.53564485,2578.1,2578.0,6.0737]
[1727025073754,2.53564485,2578.1,2578.0,5.3278]
[1727025073755,2.92350485,2578.1,2578.0,5.3278]
[1727025073952,2.92350485,2578.1,2577.4,4.53039184]
[1727025073953,0.38793,2577.7,2577.5,1.1289]
[1727025074148,0.39,2577.6,2577.5,3.2489]
[1727025074456,2.91047485,2577.6,2577.5,2.1089]
[1727025074752,1.17898,2578.0,2577.7,0.38791]
[1727025074952,1.56898,2578.0,2577.9,0.98]
[1727025075453,3.70152485,2578.0,2577.9,0.98]
[1727025076048,3.70151485,2578.0,2577.9,0.98]
[1727025076253,3.70151485,2578.0,2577.8,0.3879]
[1727025076254,3.31364485,2578.0,2577.8,0.3879]
[1727025076453,0.7911,2578.0,2577.9,2.12]
[1727025076757,0.38786,2578.1,2577.9,2.12]
[1727025076951,2.13254485,2578.0,2577.9,2.5116]
[1727025077460,2.52041485,2578.0,2577.9,2.12]
[1727025077654,2.52041485,2578.0,2577.7,5.3278]
[1727025077655,0.38789,2577.9,2577.7,5.3278]
[1727025077855,2.13254485,2577.8,2577.7,5.3278]
[1727025078957,2.13254485,2577.8,2577.7,5.71572]
[1727025079151,2.13254485,2577.8,2577.7,5.3278]
[1727025079349,2.13254485,2577.8,2577.7,5.71572]
[1727025079554,0.38786,2578.1,2577.7,5.3278]
[1727025079858,2.13254485,2577.9,2577.8,3.59569]
[1727025082260,2.13254485,2577.9,2577.8,5.71569]
[1727025083050,0.3847,2578.4,2577.9,0.96973]
[1727025083250,0.3814,2578.4,2578.3,5.71563]
[1727025083456,0.37481757,2578.5,2578.4,0.38781]
[1727025083653,0.37481757,2578.5,2578.3,5.3278]
[1727025083654,1.55041072,2578.4,2578.3,5.71562]
[1727025085152,1.55041072,2578.4,2578.3,5.3278]
[1727025085354,1.91651072,2578.4,2578.3,5.3278]
[1727025085753,1.91651072,2578.4,2578.3,5.71563]
[1727025087060,1.55041072,2578.4,2578.3,5.71563]
[1727025087757,1.55041072,2578.4,2578.3,5.3278]
[1727025087958,1.91651072,2578.4,2578.3,5.71563]
[1727025090470,1.55041072,2578.4,2578.3,5.71563]
[1727025092172,0.00391757,2578.5,2578.4,0.38781]
[1727025092366,0.00391757,2578.5,2578.4,4.41952704]
[1727025092559,0.00391757,2578.5,2578.4,16.41792704]
[1727025092761,0.419,2579.5,2579.1,0.38771]
[1727025092966,1.14361,2579.8,2579.1,12.78393889]
[1727025093167,0.2,2580.0,2579.7,2.12]
[1727025093359,0.2,2580.0,2579.9,5.3278]
[1727025093360,1.75041072,2580.0,2579.9,5.3278]
[1727025093556,1.75041072,2580.0,2579.8,2.12]
[1727025093756,0.38761,2579.8,2579.6,3.2078]
[1727025093973,1.93803072,2579.7,2579.6,3.2078]
[1727025094268,1.55041072,2579.7,2579.6,3.2078]
[1727025095369,1.91801072,2579.7,2579.6,3.2078]
[1727025098069,1.91801072,2579.7,2579.3,5.6986]
[1727025098070,2.30563072,2579.7,2579.3,5.6986]
[1727025098375,1.91801072,2579.7,2579.3,5.6986]
[1727025098669,1.55041072,2579.4,2579.3,5.3278]
[1727025098860,1.55041072,2579.4,2579.3,2.12]
[1727025099064,1.55041072,2579.4,2579.3,5.71548]
[1727025099672,0.7617,2579.9,2579.8,0.3876]
[1727025099970,0.7617,2579.9,2579.8,2.12]
[1727025099971,0.3768,2579.9,2579.8,2.12]
[1727025100171,1.55041072,2579.9,2579.8,2.12]
[1727025100467,0.2,2580.0,2579.9,0.38759]
[1727025100669,1.75041072,2580.0,2579.8,3.2612]
[1727025100869,0.2,2580.0,2579.9,0.3998]
[1727025101071,0.2,2580.0,2579.9,0.78739]
[1727025101277,0.361,2580.7,2580.6,0.38748]
[1727025101462,0.7667,2581.2,2580.6,3.2078]
[1727025101661,0.3693,2580.9,2580.6,3.2078]
[1727025101864,0.38747,2580.7,2580.6,3.2078]
[1727025102472,0.3875,2580.5,2580.3,5.3278]
[1727025102672,0.7659,2580.4,2580.3,2.12]
[1727025103078,1.15342,2580.4,2580.0,3.2078]
[1727025103271,0.7659,2580.4,2580.0,3.2078]
[1727025103471,1.15342,2580.4,2580.0,3.2078]
[1727025103665,3.2078,2580.6,2580.2,2.12]
[1727025103865,1.1531,2580.7,2580.5,2.12]
[1727025104074,1.1531,2580.7,2580.6,2.12]
[1727025104376,1.1531,2580.7,2580.6,2.50748]
[1727025105276,1.1531,2580.7,2580.6,2.12]
[1727025105466,5.0283,2580.7,2580.6,2.12]
[1727025106381,5.0283,2580.7,2580.5,2.12]
[1727025106563,5.0283,2580.7,2580.6,2.12]
[1727025106564,1.1531,2580.7,2580.6,2.12]
[1727025107065,5.0283,2580.7,2580.6,2.12]
[1727025107469,5.41577,2580.7,2580.6,2.12]
[1727025107978,5.41577,2580.7,2580.4,2.12]
[1727025107979,0.3875,2580.5,2580.4,2.12]
[1727025108365,0.38751,2580.4,2580.2,2.12]
[1727025108671,1.1531,2580.7,2580.2,2.12]
[1727025108977,0.38752,2580.4,2580.2,2.12]
[1727025109566,0.38751,2580.5,2580.2,2.12]
[1727025109767,0.38751,2580.4,2580.2,2.12]
[1727025111072,0.3707,2580.3,2580.2,2.12]
[1727025111681,0.38754,2580.2,2580.1,3.2078]
[1727025111877,5.05274,2580.2,2580.1,3.2078]
[1727025112073,5.05274,2580.2,2579.8,2.12]
[1727025112074,0.38759,2579.9,2579.8,2.12]
[1727025112678,0.76829,2579.9,2579.8,2.12]
[1727025113171,4.64429,2579.9,2579.8,2.12]
[1727025113977,10.2567,2579.9,2579.6,2.12]
[1727025114178,0.38762,2579.7,2579.6,2.12]
[1727025114880,0.3807,2579.9,2579.6,2.12]
[1727025115286,0.38762,2579.7,2579.6,2.12]
[1727025116077,0.38761,2579.8,2579.6,2.12]
[1727025116379,0.38761,2579.8,2579.4,3.2078]
[1727025116380,0.3807,2579.9,2579.8,0.3876]
[1727025116576,3.2078,2580.1,2579.7,2.12]
[1727025116876,0.3687,2580.3,2580.0,5.3278]
[1727025117085,0.3687,2580.3,2580.2,2.12]
[1727025117380,0.3677,2580.5,2580.2,2.12]
[1727025117679,0.3687,2580.7,2580.4,2.12]
[1727025117878,0.386,2580.8,2580.6,5.3278]
[1727025117879,0.75516,2580.8,2580.6,5.3278]
[1727025118180,0.3677,2580.8,2580.6,5.71528]
[1727025118878,0.3677,2580.8,2580.6,5.3278]
[1727025118879,0.75515,2580.8,2580.6,5.3278]
[1727025119181,0.3677,2580.8,2580.6,5.3278]
[1727025119780,0.38747,2580.7,2580.6,5.3278]
[1727025119974,0.78207,2580.7,2580.6,5.3278]
[1727025120482,0.3946,2580.7,2580.6,5.3278]
[1727025120677,0.78207,2580.7,2580.6,5.3278]
[1727025121081,0.3946,2580.7,2580.6,5.3278]
[1727025121290,0.75516,2580.8,2580.6,5.3278]
[1727025121478,0.3677,2580.8,2580.7,0.38747]
[1727025121789,0.3677,2580.8,2580.6,5.3278]
[1727025122186,0.3677,2580.8,2580.7,0.38747]
[1727025122380,0.3677,2580.8,2580.6,5.71528]
[1727025122987,0.3677,2580.8,2580.7,0.38747]
[1727025123685,0.3677,2580.8,2580.6,5.3278]
[1727025123686,0.3708,2581.0,2580.8,0.38744]
[1727025123986,0.386,2581.2,2581.0,0.38742]
[1727025124188,0.3977,2581.3,2581.1,2.12]
[1727025124486,3.2078,2581.9,2581.6,0.38732]
[1727025124686,3.59509,2581.9,2581.8,2.12]
[1727025124887,0.3977,2582.1,2581.8,5.3278]
[1727025125089,0.78496,2582.1,2582.0,2.12]
[1727025125281,0.3977,2582.1,2582.0,2.12]
[1727025125480,0.96791,2582.8,2582.0,5.9928]
[1727025125681,0.96791,2582.8,2581.9,0.3989]
[1727025125682,0.3868,2582.9,2582.7,2.12]
[1727025126190,3.59486,2583.5,2582.9,0.38712]
[1727025126489,0.38711,2583.1,2582.9,3.2078]
[1727025126690,3.2078,2583.1,2582.7,2.12]
[1727025126896,3.5997,2583.3,2582.9,2.12]
[1727025127096,0.38711,2583.1,2582.9,2.12]
[1727025127589,0.38712,2583.1,2582.9,2.12]
[1727025127889,0.3919,2583.3,2582.9,2.12]
[1727025128391,0.3919,2583.3,2582.8,2.6]
[1727025128392,0.38709,2583.3,2582.8,2.6]
[1727025128684,0.38709,2583.3,2582.8,5.8078]
[1727025128886,0.4016,2583.5,2582.8,5.8078]
[1727025128887,0.3871,2583.2,2582.8,5.8078]
[1727025129282,0.38708,2583.4,2582.8,5.8078]
[1727025129500,0.38707,2583.4,2582.8,5.8078]
[1727025129695,0.38708,2583.3,2582.8,5.8078]
[1727025129881,0.3838,2583.6,2582.8,5.8078]
[1727025130190,0.38708,2583.4,2582.8,5.8078]
[1727025130380,0.38706,2583.4,2582.8,5.8078]
[1727025130586,0.38706,2583.4,2583.1,3.2078]
[1727025130986,0.38707,2583.4,2582.8,2.6]
[1727025131183,0.3838,2583.6,2582.8,2.6]
[1727025131391,0.3838,2583.6,2583.1,2.6]
[1727025131690,3.2078,2583.7,2583.1,2.98711]
[1727025132090,3.2078,2583.7,2583.2,0.38709]
[1727025132293,3.2078,2583.7,2583.1,2.9871]
[1727025132489,3.2078,2583.7,2583.2,2.648]
[1727025132691,3.2078,2583.7,2583.1,2.6]
[1727025132892,3.2078,2583.7,2583.1,5.248]
[1727025133096,3.2078,2583.7,2583.0,5.8558]
[1727025133398,0.38704,2583.6,2583.0,5.8558]
[1727025133590,3.2078,2583.7,2583.0,5.8558]
[1727025133591,0.38705,2583.5,2583.0,5.8558]
[1727025133797,0.4016,2583.8,2583.3,3.2078]
[1727025133988,0.38703,2583.7,2583.3,3.2078]
[1727025134187,0.195,2584.5,2583.6,5.8078]
[1727025134500,0.38694,2584.3,2583.9,5.8078]
[1727025134698,0.38697,2584.1,2583.9,5.8078]
[1727025135000,3.2078,2584.6,2583.7,0.3674]
[1727025135189,0.38697,2584.1,2583.7,0.3674]
[1727025135392,3.2078,2584.3,2583.7,0.3674]
[1727025135594,0.38698,2584.0,2583.6,5.8078]
[1727025135788,0.38702,2583.7,2583.6,3.2078]
[1727025135991,0.38705,2583.6,2583.3,2.6]
[1727025136307,0.38705,2583.6,2583.2,3.5752]
[1727025136308,0.38708,2583.3,2583.2,3.2078]
[1727025136496,0.38708,2583.3,2582.9,2.6]
[1727025136690,0.38708,2583.3,2583.0,3.2078]
[1727025136997,2.08485,2583.7,2583.0,3.2078]
[1727025137196,0.3871,2583.2,2583.0,3.2078]
[1727025137695,2.08485,2583.7,2582.8,0.3778]
[1727025137895,0.387,2583.9,2583.3,2.6]
[1727025138210,2.647,2584.8,2583.3,2.6]
[1727025138211,3.5847,2584.1,2583.4,3.2078]
[1727025138405,0.38701,2583.8,2583.4,3.2078]
[1727025138700,3.5847,2584.1,2583.4,3.2078]
[1727025138701,0.38699,2583.9,2583.4,3.2078]
[1727025139005,2.647,2584.4,2583.7,5.8078]
[1727025139006,3.2078,2584.4,2583.7,5.8078]
[1727025139300,0.7638,2584.5,2584.1,0.38696]
[1727025139601,0.3769,2584.5,2584.1,3.2078]
[1727025139794,0.3769,2584.5,2584.1,6.19475]
[1727025139795,0.3869,2584.5,2584.1,6.19475]
[1727025140000,0.38688,2584.7,2584.2,2.647]
[1727025140305,0.3868,2585.2,2584.6,3.2078]
[1727025140598,0.38684,2584.9,2584.5,3.2078]
[1727025140801,3.2078,2585.5,2584.5,3.2078]
[1727025141002,0.96681,2585.7,2584.6,0.3846]
[1727025141003,3.2078,2585.2,2584.6,0.3846]
[1727025141200,1.37002,2585.4,2584.6,0.3846]
[1727025141402,0.38684,2584.9,2584.6,0.3846]
[1727025141601,0.38682,2585.1,2584.6,0.77148]
[1727025141794,0.38684,2585.0,2584.6,0.3846]
[1727025142201,0.38679,2585.3,2584.8,3.59465]
[1727025142400,0.4031,2585.4,2584.8,3.2078]
[1727025142608,0.38684,2585.0,2584.6,0.3846]
[1727025142904,3.2078,2585.3,2584.6,0.3846]
[1727025143201,0.38685,2584.9,2584.7,3.2078]
[1727025143699,0.38683,2585.0,2584.7,3.2078]
[1727025143901,0.38685,2584.8,2584.7,3.2078]
[1727025144103,3.2078,2585.0,2584.5,2.646]
[1727025144305,0.4031,2585.4,2584.5,2.646]
[1727025144512,3.2078,2585.0,2584.5,2.646]
[1727025144706,0.38688,2584.6,2584.5,2.646]
[1727025145009,0.38688,2584.6,2584.3,5.8538]
[1727025145203,0.38688,2584.7,2584.3,5.8538]
[1727025145404,0.38689,2584.6,2584.3,5.8538]
[1727025145600,0.38688,2584.7,2584.3,6.24073]
[1727025145806,0.38689,2584.6,2584.3,3.2078]
[1727025146001,0.96714,2584.8,2584.1,5.246]
[1727025146207,0.38691,2584.5,2584.3,3.2078]
[1727025146603,3.2078,2584.7,2584.1,2.6]
[1727025146809,0.38691,2584.4,2584.1,2.6]
[1727025147013,0.38691,2584.4,2584.2,3.2078]
[1727025147199,0.96714,2584.8,2584.2,3.2078]
[1727025147507,0.38696,2584.1,2583.9,6.7335]
[1727025147811,0.96725,2584.5,2583.9,3.2078]
[1727025147812,0.38695,2584.2,2583.9,3.2078]
[1727025148112,0.38696,2584.1,2583.9,3.2078]